fUSD/lending_fUSD_20250330
["ID","MTS","AMOUNT","RATE_DAILY","PERIOD"]
[356865810,1743344160581,-500.0,0.00054794,120]
[356865811,1743344160606,-240.60384082,0.00054794,120]
[356865812,1743344160630,-500.0,0.00054794,120]
[356865813,1743344160655,-500.0,0.00054794,120]
[356865814,1743344160679,-5469.89,0.00054794,60]
[356865815,1743344160703,-500.0,0.00054794,120]
[356865816,1743344160727,-608.13,0.00054794,120]
[356865817,1743344160752,-576.87305405,0.00054794,120]
[356865818,1743344160778,-500.0,0.00054794,120]
[356865819,1743344160803,-500.0,0.00054794,120]
[356865820,1743344160828,-500.0,0.00054794,120]
[356865821,1743344160854,-500.0,0.00054794,120]
[356865822,1743344160878,-500.0,0.00054794,120]
[356865823,1743344160903,-1000.0,0.00054794,120]
[356865824,1743344160927,-500.0,0.00054794,120]
[356865825,1743344160951,-500.0,0.00054794,120]
[356865826,1743344160976,-500.0,0.00054794,120]
[356865827,1743344161000,-500.0,0.00054794,120]
[356865828,1743344161026,-500.0,0.00054794,120]
[356865829,1743344161050,-303.48381303,0.00054794,120]
[356865830,1743344161075,-500.0,0.00054794,120]
[356865831,1743344161100,-500.0,0.00054794,120]
[356865832,1743344161123,-363.70882235,0.00054794,120]
[356865833,1743344161147,-500.0,0.00054794,120]
[356865834,1743344161171,-500.0,0.00054794,120]
[356865835,1743344161195,-347.20734684,0.00054794,7]
[356865836,1743344161321,-942.32265316,0.00054794,7]
[356865837,1743344161346,-500.0,0.00054794,120]
[356865838,1743344161519,-500.0,0.00054794,120]
[356865839,1743344161545,-500.0,0.00054794,120]
[356865840,1743344161570,-500.0,0.00054794,120]
[356865841,1743344161594,-500.0,0.00054794,120]
[356865842,1743344161619,-500.0,0.00054794,120]
[356865843,1743344161642,-574.17273756,0.00054794,60]
[356865844,1743344161667,-560.16742053,0.00054794,120]
[356865845,1743344161691,-348.97009251,0.00054794,120]
[356865846,1743344161715,-500.0,0.00054794,120]
[356865847,1743344161738,-251.65201847,0.00054794,120]
[356865848,1743344161763,-500.0,0.00054794,120]
[356865849,1743344161787,-500.0,0.00054794,120]
[356865850,1743344161812,-500.0,0.00054794,120]
[356865851,1743344161837,-518.27238313,0.00054794,120]
[356865852,1743344161861,-500.0,0.00054794,120]
[356865853,1743344161885,-500.0,0.00054794,120]
[356865854,1743344161909,-230.21,0.00054794,120]
[356865855,1743344161934,-500.0,0.00054794,120]
[356865856,1743344161958,-500.0,0.00054794,120]
[356865857,1743344161982,-276.93005584,0.00054794,120]
[356865858,1743344162007,-500.0,0.00054794,120]
[356865859,1743344162033,-500.0,0.00054794,120]
[356865860,1743344162058,-500.0,0.00054794,120]
[356865861,1743344162083,-3033.67,0.00054794,120]
[356865862,1743344162112,-500.0,0.00054794,120]
[356865863,1743344162138,-536.96335966,0.00054794,120]
[356865864,1743344162164,-500.0,0.00054794,120]
[356865865,1743344162189,-500.0,0.00054794,120]
[356865866,1743344162214,-500.0,0.00054794,120]
[356865867,1743344162247,-291.85934119,0.00054794,120]
[356865868,1743344162274,-500.0,0.00054794,120]
[356865869,1743344162301,-500.0,0.00054794,120]
[356865870,1743344162326,-500.0,0.00054794,120]
[356865871,1743344162351,-500.0,0.00054794,120]
[356865872,1743344162378,-1194.86,0.00054794,120]
[356865873,1743344162403,-162.06311563,0.00054794,120]
[356865874,1743344162429,-500.0,0.00054794,120]
[356865875,1743344162454,-504.48706099,0.00054794,120]
[356865876,1743344162481,-392.55942788,0.00054794,120]
[356865877,1743344162506,-500.0,0.00054794,120]
[356865878,1743344162532,-500.0,0.00054794,120]
[356865879,1743344162560,-500.0,0.00054794,120]
[356865880,1743344162585,-540.75901094,0.00054794,120]
[356865881,1743344162611,-140.08132251,0.00054794,2]
[356865882,1743344163245,-359.91867749,0.00054794,2]
[356865883,1743344163274,-1628.66,0.00054794,120]
[356865884,1743344163300,-510.78331027,0.00054794,120]
[356865885,1743344163328,-500.0,0.00054794,120]
[356865886,1743344163357,-500.0,0.00054794,120]
[356865887,1743344163385,-500.0,0.00054794,120]
[356865888,1743344163412,-500.0,0.00054794,120]
[356865889,1743344163439,-500.0,0.00054794,120]
[356865890,1743344163467,-500.0,0.00054794,120]
[356865891,1743344163495,-500.0,0.00054794,120]
[356865892,1743344163522,-349.29877122,0.00054794,120]
[356865893,1743344163549,-500.0,0.00054794,120]
[356865894,1743344163576,-500.0,0.00054794,120]
[356865895,1743344163602,-500.0,0.00054794,120]
[356865896,1743344163629,-500.0,0.00054794,120]
[356865897,1743344163656,-500.0,0.00054794,120]
[356865898,1743344163682,-500.0,0.00054794,120]
[356865899,1743344163708,-2763.1,0.00054794,120]
[356865900,1743344163735,-312.05,0.00054794,120]
[356865901,1743344163761,-372.38,0.00054794,120]
[356865902,1743344163787,-607.46706804,0.00054794,120]
[356865903,1743344163812,-500.0,0.00054794,120]
[356865904,1743344163837,-500.0,0.00054794,120]
[356865905,1743344163863,-564.72717752,0.00054794,120]
[356865906,1743344163888,-500.0,0.00054794,120]
[356865907,1743344163915,-500.0,0.00054794,120]
[356865908,1743344163940,-500.0,0.00054794,120]
[356865909,1743344163966,-500.0,0.00054794,120]
[356865910,1743344163992,-518.75317994,0.00054794,120]
[356865911,1743344164018,-979.58,0.00054794,120]
[356865912,1743344164045,-500.0,0.00054794,120]
[356865913,1743344164072,-568.70122125,0.00054794,120]
[356865914,1743344164098,-543.49414976,0.00054794,120]
[356865915,1743344164125,-500.0,0.00054794,120]
[356865916,1743344164150,-363.61731583,0.00054794,30]
[356865917,1743344164176,-500.0,0.00054794,120]
[356865918,1743344164204,-500.0,0.00054794,120]
[356865919,1743344164233,-500.0,0.00054794,120]
[356865920,1743344164260,-500.0,0.00054794,120]
[356865921,1743344164287,-500.0,0.00054794,120]
[356865922,1743344164315,-500.0,0.00054794,120]
[356865923,1743344164340,-500.0,0.00054794,120]
[356865924,1743344164366,-500.0,0.00054794,120]
[356865925,1743344164391,-57.46912868,0.00054794,120]
[356866035,1743344541451,-156.15,0.00026849,2]
[356866036,1743344541477,-156.15,0.00032646,2]
[356866037,1743344541501,-156.15,0.00038443,2]
[356866038,1743344541526,-156.15,0.00044239,2]
[356866039,1743344541549,-156.15,0.00050036,2]
[356866040,1743344541573,-219.337954,0.00053349,4]
[356866041,1743344541597,-170.53526247,0.00054,4]
[356866042,1743344541621,-460.64,0.00054,120]
[356866043,1743344541645,-150.0,0.0005418,7]
[356866044,1743344541668,-1173.0,0.000542,2]
[356866045,1743344541692,-2860.75083571,0.00054594,120]
[356866046,1743344541716,-673.27865921,0.00054694,120]
[356866047,1743344541739,-673.27865921,0.00054747,120]
[356866048,1743344541763,-6625.53208585,0.00054784,2]
[356866049,1743344541789,-349.616,0.00054792,103]
[356866050,1743344541813,-442.53087132,0.00054794,120]
[356866051,1743344541838,-500.0,0.00054794,120]
[356866052,1743344541862,-500.0,0.00054794,120]
[356866053,1743344541885,-500.0,0.00054794,120]
[356866054,1743344541908,-519.79037046,0.00054794,120]
[356866055,1743344541932,-500.0,0.00054794,120]
[356866056,1743344541955,-500.0,0.00054794,120]
[356866057,1743344541991,-538.72393199,0.00054794,120]
[356866058,1743344542017,-500.0,0.00054794,120]
[356866059,1743344542042,-500.0,0.00054794,120]
[356866060,1743344542068,-529.54356974,0.00054794,120]
[356866061,1743344542095,-523.30956767,0.00054794,120]
[356866062,1743344542122,-500.0,0.00054794,120]
[356866063,1743344542148,-500.0,0.00054794,120]
[356866064,1743344542174,-500.0,0.00054794,120]
[356866065,1743344542198,-500.0,0.00054794,120]
[356866066,1743344542431,-500.0,0.00054794,120]
[356866067,1743344542460,-500.0,0.00054794,120]
[356866068,1743344542485,-500.0,0.00054794,120]
[356866069,1743344542511,-500.0,0.00054794,120]
[356866070,1743344542538,-500.0,0.00054794,120]
[356866071,1743344542563,-309.38223237,0.00054794,120]
[356866076,1743344708121,50000.0,0.00015,2]
[356866077,1743344708164,50000.0,0.00015,2]
[356866078,1743344708198,50000.0,0.00015,2]
[356866079,1743344708237,50000.0,0.00015,2]
[356866080,1743344708271,50000.0,0.00015,2]
[356866081,1743344708301,30000.0,0.00015,2]
[356866082,1743344708331,15000.0,0.00015,2]
[356866083,1743344708364,50000.0,0.00015,2]
[356866086,1743344755370,483.56258758,0.0001489,2]
[356866088,1743344825008,-150.0,0.00014999,2]
[356866090,1743344897466,765.5264765,0.000149,2]
[356866091,1743344922906,1260.64973786,0.0001421,7]
[356866092,1743344922929,91.74610718,0.0001421,7]
[356866096,1743344970696,866.35,0.00014924,2]
[356866097,1743344979581,153.34869191,0.000149,2]
[356866105,1743344993468,931.61403681,0.000149,2]
[356866109,1743345003441,-236.71450965,0.0001499,2]
[356866110,1743345031025,-126.30898288,0.0001499,2]
[356866111,1743345031046,-257.3597206,0.0001499,2]
[356866122,1743345032103,-126.30898288,0.0001499,2]
[356866123,1743345032113,-383.66870348,0.0001499,2]
[356866124,1743345032122,-383.66870348,0.0001499,2]
[356866125,1743345032131,-230.44806136,0.00014999,2]
[356866126,1743345032140,-377.97850167,0.00014999,2]
[356866127,1743345032207,-122.02149833,0.00014999,2]
[356866128,1743345032216,-500.0,0.00014999,2]
[356866129,1743345032226,-158.396741,0.00014999,2]
[356866130,1743345032235,-150.0,0.00014999,2]
[356866131,1743345032244,-499.99999999,0.00014999,2]
[356866132,1743345032254,-4503.6971363,0.00015,2]
[356866133,1743345032265,-4441.00885585,0.00015,2]
[356866134,1743345032276,-275.78008703,0.00015,2]
[356866135,1743345032292,-2648.66328871,0.00015,2]
[356866201,1743345037965,-75590.41501729,0.00015,2]
[356866232,1743345040083,-446.71758713,0.00015,2]
[356866233,1743345040106,-885.94801387,0.00015,2]
[356866234,1743345040120,-297.82867182,0.00015,2]
[356866235,1743345040131,-1346775.70552433,0.00015,2]
[356866236,1743345040143,-856589.97727306,0.00015,2]
[356866237,1743345040175,-117057.44597253,0.00015,2]
[356866238,1743345040187,-8674.10089428,0.00015,2]
[356866239,1743345040231,-112181.8662803,0.00015,2]
[356866240,1743345040324,-15900.48503539,0.00015,2]
[356866241,1743345040336,-588638.15713399,0.00015,2]
[356866242,1743345040422,-3784.06068688,0.00015,2]
[356866255,1743345044749,-9335.21409544,0.00015,2]
[356866272,1743345047366,-28694.34913708,0.00015,2]
[356866273,1743345047379,-917.9307743,0.00015,2]
[356866274,1743345047402,-1436.64845719,0.00015,2]
[356866275,1743345047413,-173109.00806499,0.00015,2]
[356866276,1743345047596,-102762.9383615,0.00015,2]
[356866277,1743345047615,-20748.706,0.00015,2]
[356866278,1743345047627,-1490.21645,0.00015,2]
[356866297,1743345065826,166.808309,0.00014925,2]
[356866298,1743345069974,170.81201261,0.000149,2]
[356866300,1743345160351,-184.26630456,0.00014999,2]
[356866301,1743345161161,656.34453654,0.000149,2]
[356866303,1743345264392,1659.20370956,0.000149,2]
[356866304,1743345264416,225.4406172,0.000149,2]
[356866305,1743345268849,621.07602454,0.00014914,2]
[356866306,1743345269300,1884.64432676,0.00014902,2]
[356866307,1743345274308,1884.64432676,0.00014903,2]
[356866308,1743345279316,80.42210835,0.00014905,2]
[356866309,1743345279340,1804.22221841,0.00014905,2]
[356866310,1743345284315,1884.64432676,0.00014906,2]
[356866311,1743345289310,1007.36085844,0.00014908,2]
[356866312,1743345289333,877.28346832,0.00014908,2]
[356866313,1743345294313,1884.64432676,0.00014909,2]
[356866314,1743345299342,1884.64432676,0.00014911,2]
[356866315,1743345300453,49.65528177,0.000149,2]
[356866316,1743345300476,121.15673084,0.000149,2]
[356866317,1743345304305,1884.64432676,0.00014912,2]
[356866318,1743345308002,192.71676918,0.000149,2]
[356866319,1743345309326,1884.64432676,0.00014914,2]
[356866320,1743345362636,-187.52852536,0.00014999,2]
[356866323,1743345404040,414.05068302,0.00014914,2]
[356866324,1743345408861,-112.47147464,0.00014999,2]
[356866325,1743345408884,-150.0,0.00014999,2]
[356866326,1743345501082,-1000.0,0.00015,2]
[356866327,1743345502378,-1000.0,0.00015,2]
[356866328,1743345503600,-1000.0,0.00015,2]
[356866329,1743345505081,-1000.0,0.00015,2]
[356866330,1743345506074,-1000.0,0.00015,2]
[356866331,1743345507062,-1000.0,0.00015,2]
[356866332,1743345507972,-1000.0,0.00015,2]
[356866333,1743345509545,-1000.0,0.00015,2]
[356866334,1743345509801,209.52852536,0.000147,2]
[356866335,1743345509826,140.08747464,0.000147,2]
[356866336,1743345515811,58.92709241,0.000149,2]
[356866337,1743345515835,111.8849202,0.000149,2]
[356866338,1743345517376,-1000.0,0.00015,2]
[356866339,1743345523519,-1000.0,0.00015,2]
[356866340,1743345525254,-1000.0,0.00015,2]
[356866341,1743345526274,-1000.0,0.00015,2]
[356866342,1743345527446,-1000.0,0.00015,2]
[356866343,1743345529484,-1000.0,0.00015,2]
[356866344,1743345531101,-1000.0,0.00015,2]
[356866345,1743345534983,-1000.0,0.00015,2]
[356866346,1743345539271,276.03378868,0.00014914,2]
[356866347,1743345558366,-150.0,0.00014999,2]
[356866348,1743345558392,-14850.0,0.00015,2]
[356866349,1743345616413,580.76295975,0.000149,2]
[356866350,1743345616832,-150.0,0.0001499,2]
[356866352,1743345710866,172.02728712,0.000149,2]
[356866353,1743345771456,590.71008285,0.000149,2]
[356866395,1743345776414,590.71008283,0.00014902,2]
[356866454,1743345781578,590.71008283,0.00014903,2]
[356866485,1743345786408,590.71008283,0.00014905,2]
[356866486,1743345791423,590.71008283,0.00014906,2]
[356866487,1743345796535,590.71008283,0.00014908,2]
[356866488,1743345801448,11.25795086,0.00014909,2]
[356866489,1743345801471,579.45213197,0.00014909,2]
[356866490,1743345806413,590.71008283,0.00014911,2]
[356866491,1743345817099,-155.21812665,0.00014912,2]
[356866492,1743345840364,1656.47674475,0.00033274,120]
[356866501,1743346159775,159.82258,0.00015,13]
[356866505,1743346202171,154.82455848,0.000149,2]
[356866510,1743346217154,644.4576,0.000149,2]
[356866517,1743346232168,-293.95909144,0.0001499,2]
[356866518,1743346232180,-6181.57299441,0.0001499,2]
[356866519,1743346232190,-502.68803244,0.0001499,2]
[356866520,1743346232199,-502.68803244,0.0001499,2]
[356866521,1743346232209,-591.20556994,0.00014999,2]
[356866522,1743346232219,-150.0,0.00014999,2]
[356866523,1743346232228,-20146.76842056,0.00015,2]
[356866524,1743346232248,-9600.50836558,0.00015,2]
[356866525,1743346232259,-5614.44618781,0.00015,2]
[356866526,1743346232270,-5757.32547878,0.00015,2]
[356866527,1743346232285,-598.20233049,0.00015,2]
[356866528,1743346232297,-4086.11267,0.00015,2]
[356866529,1743346232309,-1050.0,0.00015,2]
[356866530,1743346232320,-2002.65164984,0.00015,2]
[356866531,1743346232331,-1681.21549141,0.00015,2]
[356866532,1743346232342,-1577.36276331,0.00015,2]
[356866533,1743346232357,-518.60869537,0.00015,2]
[356866534,1743346232531,-419.89872378,0.00015,2]
[356866535,1743346232542,-4522.01405745,0.00015,2]
[356866536,1743346232553,-419.99283975,0.00015,2]
[356866537,1743346232564,-253.7535,0.00015,2]
[356866538,1743346232575,-475.49962009,0.00015,2]
[356866539,1743346232591,-681.59136796,0.00015,2]
[356866606,1743346238133,-184.02252578,0.00014925,2]
[356866607,1743346238143,-710321.27550892,0.00015,2]
[356866608,1743346238154,-1697.17293,0.00015,2]
[356866609,1743346238166,-1134.97449856,0.00015,2]
[356866610,1743346238177,-854.43536617,0.00015,2]
[356866611,1743346238188,-259.80992006,0.00015,2]
[356866612,1743346238200,-357.00827805,0.00015,2]
[356866613,1743346238215,-21116.5993468,0.00015,2]
[356866614,1743346238229,-2488.87752262,0.00015,2]
[356866615,1743346238240,-2355.000004,0.00015,2]
[356866616,1743346238251,-3116.79999994,0.00015,2]
[356866617,1743346238262,-1986.74,0.00015,2]
[356866618,1743346238273,-4070.00000002,0.00015,2]
[356866619,1743346238285,-24204.70000001,0.00015,2]
[356866620,1743346238301,-611.1,0.00015,2]
[356866621,1743346238327,-2115.0882739,0.00015,2]
[356866622,1743346238353,-2701.23239566,0.00015,2]
[356866633,1743346240335,-637.30854649,0.00015,2]
[356866634,1743346240347,-164382.63781882,0.00015,2]
[356866635,1743346240359,-136927.89836172,0.00015,2]
[356866636,1743346240369,-1699.19853228,0.00015,2]
[356866637,1743346240380,-652.420016,0.00015,2]
[356866638,1743346240468,-0.01163433,0.00015,2]
[356866639,1743346240479,-467.95593703,0.00015,2]
[356866640,1743346240494,-3335.14921499,0.00015,2]
[356866641,1743346240581,-949814.84540262,0.00015,2]
[356866642,1743346240591,-3430451.37450192,0.00015,2]
[356866643,1743346240601,-154.82455839,0.00015025,2]
[356866644,1743346240610,-154.82455839,0.0001515,2]
[356866645,1743346240619,-154.82455839,0.00015275,2]
[356866646,1743346240628,-154.82455839,0.000154,2]
[356866647,1743346240637,-154.82455839,0.00015524,2]
[356866648,1743346240647,-154.82455839,0.00015649,2]
[356866649,1743346240656,-154.82455839,0.00015774,2]
[356866650,1743346240665,-255.0,0.00016124,2]
[356866651,1743346240675,-52544.44371622,0.00019,2]
[356866652,1743346240684,-159.82259,0.0002,13]
[356866653,1743346240694,-150.11,0.0002,2]
[356866654,1743346240703,-150.11,0.0002,2]
[356866655,1743346240712,-150.11,0.0002,2]
[356866656,1743346240724,-150.11,0.0002,2]
[356866657,1743346240733,-150.11,0.0002,2]
[356866658,1743346240742,-150.11,0.0002,2]
[356866659,1743346240751,-150.11,0.0002,2]
[356866660,1743346240761,-150.11,0.0002,2]
[356866661,1743346240771,-23900.0,0.00021431,2]
[356866662,1743346240780,-150.0,0.00022829,7]
[356866663,1743346240789,-239.15,0.00023836,2]
[356866664,1743346240798,-261.95,0.00024158,2]
[356866665,1743346240807,-502.68803244,0.0002479,2]
[356866667,1743346240817,-150.11,0.0002479,2]
[356866669,1743346240826,-492028.069852,0.000248,3]
[356866671,1743346240835,-250.0,0.00025,2]
[356866672,1743346240844,-159.82259,0.00025,13]
[356866674,1743346240853,-261.95,0.00026422,2]
[356866676,1743346240863,-167.27,0.00026849,2]
[356866678,1743346240873,-300.0,0.00027,2]
[356866680,1743346240881,-592.29137335,0.000277,5]
[356866682,1743346240890,-500.0,0.000277,2]
[356866684,1743346240899,-500.0,0.000277,5]
[356866686,1743346240908,-500.0,0.0002828,2]
[356866688,1743346240920,-250.0,0.00028606,2]
[356866690,1743346240929,-261.95,0.00028686,2]
[356866692,1743346240938,-350.0,0.00029,2]
[356866694,1743346240947,-224.25,0.00029629,2]
[356866696,1743346240957,-159.82259,0.0003,13]
[356866698,1743346240967,-261.95,0.0003095,2]
[356866700,1743346240978,-95439.37942276,0.00031,2]
[356866702,1743346240988,-400.0,0.00031,2]
[356866704,1743346240999,-767.14491168,0.00032274,4]
[356866705,1743346241008,-167.27,0.00032646,2]
[356866707,1743346241018,-161.45,0.00032932,120]
[356866709,1743346241027,-261.95,0.00033214,2]
[356866711,1743346241037,-191.25709536,0.00033274,2]
[356866713,1743346241046,-7757.13571898,0.00033274,2]
[356866714,1743346241055,-4366.84756459,0.00033274,2]
[356866715,1743346241064,-4702.95586478,0.00033274,2]
[356866716,1743346241073,-2623.7479369,0.00033274,2]
[356866717,1743346241082,-868.44020803,0.00033274,2]
[356866718,1743346241091,-6590.54615795,0.00033274,2]
[356866719,1743346241101,-150.0,0.00033274,2]
[356866720,1743346241110,-150.0,0.00033274,3]
[356866721,1743346241119,-500.0,0.00033759,2]
[356866722,1743346241129,-159.82259,0.00035,13]
[356866723,1743346241138,-239.15,0.00035068,2]
[356866724,1743346241147,-261.95,0.00035478,2]
[356866725,1743346241157,-159.96,0.00035616,2]
[356866726,1743346241165,-100000.0,0.00036,7]
[356866727,1743346241175,-261.95,0.00037742,2]
[356866728,1743346241185,-159.96,0.00037842,2]
[356866729,1743346241194,-167.27,0.00038443,2]
[356866730,1743346241203,-6841.0,0.000385,4]
[356866731,1743346241212,-349.616,0.00038525,52]
[356866732,1743346241222,-159.82259,0.0004,13]
[356866733,1743346241230,-261.95,0.00040005,2]
[356866734,1743346241240,-159.96,0.00040068,2]
[356866735,1743346241249,-500.0,0.00040877,31]
[356866736,1743346241258,-500.0,0.00040877,31]
[356866737,1743346241267,-155.0,0.00040877,31]
[356866738,1743346241277,-420.0,0.00041498,7]
[356866739,1743346241286,-261.95,0.00042269,2]
[356866740,1743346241295,-159.96,0.00042295,2]
[356866741,1743346241307,-1000.0,0.00042929,2]
[356866742,1743346241316,-152.21836522,0.00043,90]
[356866743,1743346241325,-1014.36400686,0.00043937,5]
[356866744,1743346241335,-167.27,0.00044239,2]
[356866745,1743346241345,-159.96,0.00044521,2]
[356866746,1743346241355,-261.95,0.00044533,2]
[356866747,1743346241364,-161.45,0.00045247,120]
[356866748,1743346241523,-457.29,0.00045679,7]
[356866749,1743346241533,-1000.0,0.00045679,7]
[356866750,1743346241543,-2000.0,0.00045679,7]
[356866751,1743346241553,-2000.0,0.00045679,7]
[356866752,1743346241562,-679.83,0.000457,14]
[356866753,1743346241572,-711.0,0.00046124,30]
[356866754,1743346241582,-239.15,0.00046301,2]
[356866755,1743346241591,-711.0,0.00046599,30]
[356866756,1743346241602,-159.96,0.00046747,2]
[356866757,1743346241611,-261.95,0.00046797,2]
[356866758,1743346241621,-711.0,0.00047075,30]
[356866759,1743346241630,-711.0,0.0004755,30]
[356866760,1743346241639,-302.14143935,0.0004755,30]
[356866761,1743346241649,-711.0,0.00048026,30]
[356866762,1743346241659,-1000.0,0.00048295,2]
[356866763,1743346241668,-711.0,0.00048501,30]
[356866764,1743346241677,-159.96,0.00048973,2]
[356866765,1743346241687,-711.0,0.00048977,30]
[356866766,1743346241696,-1710.25,0.00049015,38]
[356866767,1743346241706,-261.95,0.00049061,2]
[356866768,1743346241716,-569.5894372,0.00049315,120]
[356866769,1743346241725,-500.0,0.00049315,120]
[356866770,1743346241735,-500.0,0.00049315,120]
[356866771,1743346241744,-500.0,0.00049315,120]
[356866772,1743346241754,-500.0,0.00049315,120]
[356866773,1743346241764,-500.0,0.00049315,120]
[356866774,1743346241774,-808.39,0.00049315,120]
[356866775,1743346241784,-531.27987351,0.00049315,120]
[356866776,1743346241794,-1090.28,0.00049315,120]
[356866777,1743346241804,-500.0,0.00049315,120]
[356866778,1743346241814,-500.0,0.00049315,120]
[356866779,1743346241823,-500.0,0.00049315,120]
[356866780,1743346241832,-500.0,0.00049315,120]
[356866781,1743346241842,-2456.74,0.00049315,120]
[356866782,1743346241851,-500.0,0.00049315,120]
[356866783,1743346241862,-500.0,0.00049315,120]
[356866784,1743346241872,-500.0,0.00049315,120]
[356866785,1743346241881,-500.0,0.00049315,120]
[356866786,1743346241891,-604.88586557,0.00049315,120]
[356866787,1743346241900,-500.0,0.00049315,120]
[356866788,1743346241912,-500.0,0.00049315,120]
[356866789,1743346241921,-500.0,0.00049315,120]
[356866790,1743346241932,-530.22897007,0.00049315,120]
[356866791,1743346241941,-500.0,0.00049315,120]
[356866792,1743346241951,-500.0,0.00049315,120]
[356866793,1743346241962,-2070.7,0.00049315,120]
[356866794,1743346241972,-2070.7,0.00049315,120]
[356866795,1743346241981,-2070.7,0.00049315,120]
[356866796,1743346241992,-500.0,0.00049315,120]
[356866797,1743346242002,-2070.7,0.00049315,120]
[356866798,1743346242012,-500.0,0.00049315,120]
[356866799,1743346242021,-2070.7,0.00049315,120]
[356866800,1743346242030,-2070.7,0.00049315,120]
[356866801,1743346242040,-2070.7,0.00049315,120]
[356866802,1743346242050,-500.0,0.00049315,120]
[356866803,1743346242060,-2070.7,0.00049315,120]
[356866804,1743346242070,-2070.7,0.00049315,120]
[356866805,1743346242079,-500.0,0.00049315,120]
[356866806,1743346242088,-2070.7,0.00049315,120]
[356866807,1743346242098,-2070.7,0.00049315,120]
[356866808,1743346242107,-2070.7,0.00049315,120]
[356866809,1743346242117,-2070.7,0.00049315,120]
[356866810,1743346242126,-500.0,0.00049315,120]
[356866811,1743346242135,-2070.7,0.00049315,120]
[356866812,1743346242145,-2070.7,0.00049315,120]
[356866813,1743346242154,-500.0,0.00049315,120]
[356866814,1743346242164,-2070.7,0.00049315,120]
[356866815,1743346242175,-2070.7,0.00049315,120]
[356866816,1743346242184,-2070.7,0.00049315,120]
[356866817,1743346242193,-500.0,0.00049315,120]
[356866818,1743346242203,-531.43306979,0.00049315,120]
[356866819,1743346242212,-2070.7,0.00049315,120]
[356866820,1743346242222,-2070.7,0.00049315,120]
[356866821,1743346242231,-2070.7,0.00049315,120]
[356866822,1743346242241,-500.0,0.00049315,120]
[356866823,1743346242250,-500.0,0.00049315,120]
[356866824,1743346242260,-2070.7,0.00049315,120]
[356866825,1743346242269,-589.26,0.00049315,120]
[356866826,1743346242279,-500.0,0.00049315,120]
[356866827,1743346242289,-2070.7,0.00049315,120]
[356866828,1743346242298,-2070.81919158,0.00049315,120]
[356866829,1743346242307,-595.33720794,0.00049315,120]
[356866830,1743346242317,-567.15343834,0.00049315,120]
[356866831,1743346242327,-500.0,0.00049315,120]
[356866832,1743346242336,-500.0,0.00049315,120]
[356866833,1743346242345,-500.0,0.00049315,120]
[356866834,1743346242355,-500.0,0.00049315,120]
[356866835,1743346242363,-500.0,0.00049315,120]
[356866836,1743346242373,-500.0,0.00049315,120]
[356866837,1743346242382,-537.03951489,0.00049315,120]
[356866838,1743346242392,-500.0,0.00049315,120]
[356866839,1743346242401,-537.79512017,0.00049315,120]
[356866840,1743346242410,-2232.9,0.00049315,120]
[356866841,1743346242419,-500.0,0.00049315,120]
[356866842,1743346242428,-500.0,0.00049315,120]
[356866843,1743346242437,-699.29,0.00049315,120]
[356866844,1743346242446,-500.0,0.00049315,120]